bitfinex/quotes_ETHUSD_20250715
["timestamp","ask_amount","ask_price","bid_price","bid_amount"]
[1752600211665,0.04088173,3057.6,3057.4,0.1023068]
[1752600211873,0.04088173,3057.6,3057.5,0.1023068]
[1752600213126,4.02011018,3058.5,3057.7,3.27034009]
[1752600213350,3.26985172,3058.3,3057.8,0.1023068]
[1752600213555,3.04087371,3058.2,3057.9,0.1023068]
[1752600213859,0.04087371,3058.2,3058.0,0.1023068]
[1752600214070,3.37193284,3058.2,3058.1,0.1023068]
[1752600214271,0.37193284,3058.2,3058.1,0.1023068]
[1752600214570,0.001,3059.1,3058.2,0.55]
[1752600214770,0.001,3059.1,3058.9,0.7835]
[1752600215062,0.001,3059.1,3059.0,3.30173259]
[1752600215264,0.001,3059.1,3059.0,4.29383259]
[1752600215470,0.001,3059.1,3059.0,5.28126969]
[1752600215675,0.001,3059.1,3059.0,5.179]
[1752600215872,0.001,3059.1,3059.0,0.10227207]
[1752600216072,3.2699353,3059.1,3059.0,0.10227207]
[1752600216270,4.49514164,3059.1,3059.0,0.10227207]
[1752600216631,1.22620634,3059.1,3059.0,0.10227207]
[1752600216980,0.77830634,3059.1,3059.0,0.10225881]
[1752600217141,0.001,3059.1,3059.0,0.10225881]
[1752600217335,3.27001048,3059.1,3058.6,5.179]
[1752600217668,0.04086302,3059.0,3058.7,0.10227199]
[1752600217873,0.04086302,3059.0,3058.8,0.10227199]
[1752600218073,3.0,3058.7,3058.2,0.24351222]
[1752600218275,3.04086569,3058.8,3058.4,5.178]
[1752600218578,0.04086569,3058.8,3058.5,0.10228415]
[1752600218764,0.1632,3058.7,3058.6,0.10228415]
[1752600218941,3.0,3058.9,3058.6,0.10228415]
[1752600219272,3.0,3058.9,3058.7,0.10228415]
[1752600219273,3.1632,3058.9,3058.7,0.10228415]
[1752600219456,3.73653534,3058.9,3058.8,0.10228415]
[1752600219675,6.73653534,3058.9,3058.3,5.3412]
[1752600219851,3.0,3058.8,3058.4,0.1022667]
[1752600220051,0.67365353,3058.7,3058.5,0.1022667]
[1752600220266,0.67365353,3058.7,3058.6,0.1022674]
[1752600220671,3.1632,3058.9,3058.6,0.1022674]
[1752600220981,3.1632,3058.9,3058.7,0.1022674]
[1752600221138,0.1632,3058.9,3058.8,0.1022674]
[1752600222457,0.1632,3058.9,3058.8,0.8649674]
[1752600222658,0.001,3059.1,3058.8,1.2048]
[1752600224061,0.001,3059.1,3058.6,0.03269469]
[1752600224062,4.13305861,3059.1,3058.6,5.177]
[1752600224264,0.6111,3059.0,3058.6,5.177]
[1752600224481,0.1632,3059.0,3058.5,3.26957584]
[1752600224649,3.31006117,3058.9,3058.6,5.177]
[1752600224980,0.04086436,3058.9,3058.4,4.28776751]
[1752600225274,3.43226586,3059.0,3058.5,0.4421]
[1752600225482,0.1632,3059.0,3058.5,8.88762313]
[1752600225778,3.1632,3059.0,3058.6,3.26946205]
[1752600226085,0.001,3059.1,3058.7,0.4421]
[1752600226381,0.001,3059.1,3058.9,3.26909452]
[1752600226589,0.001,3059.1,3059.0,8.44504217]
[1752600226754,0.001,3059.1,3059.0,6.1102]
[1752600226961,0.001,3059.1,3059.0,9.37924217]
[1752600227260,0.001,3059.1,3059.0,9.84794217]
[1752600227457,0.001,3059.1,3059.0,10.39794217]
[1752600227660,0.001,3059.1,3059.0,11.7646508]
[1752600229786,1e-08,3059.1,3059.0,11.7646508]
[1752600231269,1e-08,3059.1,3059.0,19.6156508]
[1752600231510,1e-08,3059.1,3059.0,19.6146508]
[1752600232219,1e-08,3059.1,3059.0,22.6146508]
[1752600232492,1e-08,3059.1,3059.0,24.5796508]
[1752600233359,1e-08,3059.1,3059.0,29.2596508]
[1752600234902,0.002,3059.8,3059.0,29.2596508]
[1752600234903,0.002,3059.8,3059.7,4.63869427]
[1752600235108,0.002,3059.8,3059.7,9.84537721]
[1752600235257,0.002,3059.8,3059.7,10.28139427]
[1752600235467,0.002,3059.8,3059.7,10.44459427]
[1752600237664,0.001,3060.4,3060.3,4.59125349]
[1752600237866,0.001,3060.4,3060.3,10.58283137]
[1752600238202,0.001,3060.4,3060.3,11.18205484]
[1752600239399,0.001,3060.4,3060.3,11.43103448]
[1752600239998,0.001,3060.4,3060.3,11.43003448]
[1752600240519,0.001,3060.4,3060.3,10.10643448]
[1752600240666,0.001,3060.4,3060.3,10.65643448]
[1752600242625,0.001,3060.4,3060.3,11.42393448]
[1752600243510,0.001,3060.4,3060.3,11.42293448]
[1752600243922,0.002,3061.1,3060.6,0.7572]
[1752600244216,0.002,3061.1,3061.0,4.58990623]
[1752600244381,0.002,3061.1,3061.0,1.4862]
[1752600244576,0.002,3061.1,3061.0,0.1632]
[1752600244782,1.2709,3061.1,3061.0,5.171]
[1752600244999,0.002,3061.1,3061.0,5.171]
[1752600245177,0.002,3061.1,3061.0,5.3332]
[1752600245379,0.002,3061.1,3061.0,0.7132]
[1752600245619,0.002,3061.1,3061.0,9.61880623]
[1752600245824,0.002,3061.1,3061.0,11.18561522]
[1752600246986,0.002,3061.1,3061.0,12.00261522]
[1752600247197,1e-08,3061.1,3061.0,16.96761522]
[1752600248796,1e-08,3061.1,3061.0,11.79761522]
[1752600249118,1e-08,3061.1,3061.0,27.73700049]
[1752600249294,0.001,3061.7,3061.0,27.73700049]
[1752600249295,0.001,3061.7,3061.6,3.816266]
[1752600249496,0.001,3061.7,3061.6,10.3289926]
[1752600249695,0.001,3061.7,3061.6,10.7976926]
[1752600249922,0.001,3061.7,3061.6,5.6286926]
[1752600250086,1e-08,3061.7,3061.6,10.7976926]
[1752600250517,1e-08,3061.7,3061.6,15.7626926]
[1752600250715,1e-08,3061.7,3061.6,13.7976926]
[1752600250914,1e-08,3061.7,3061.6,8.6286926]
[1752600251118,1e-08,3061.7,3061.6,13.7966926]
[1752600252722,1e-08,3061.7,3061.6,8.1599926]
[1752600252928,1e-08,3061.7,3061.6,9.7779926]
[1752600253132,1e-08,3061.7,3061.6,5.3312]
[1752600253336,1e-08,3061.7,3061.6,5.36386266]
[1752600253695,1e-08,3061.7,3061.6,0.19586266]
[1752600253929,1e-08,3061.7,3061.6,3.429466]
[1752600254230,1e-08,3061.7,3061.6,0.19586266]
[1752600254735,0.43610001,3061.7,3061.6,5.3302]
[1752600254890,0.43610001,3061.7,3061.6,0.1632]
[1752600255222,0.43610001,3061.7,3061.6,5.167]
[1752600255394,1e-08,3061.7,3061.6,8.596466]
[1752600255729,1e-08,3061.7,3061.6,5.3302]
[1752600257328,1e-08,3061.7,3061.6,9.146466]
[1752600257542,1e-08,3061.7,3061.6,10.84141792]
[1752600257760,1e-08,3061.7,3061.6,11.64011792]
[1752600258445,0.45470001,3061.7,3061.2,11.11267666]
[1752600258622,0.4547,3061.6,3061.4,0.1632]
[1752600259016,0.4547,3061.6,3061.5,5.167]
[1752600259751,0.4547,3061.6,3061.4,0.1632]
[1752600259919,0.4547,3061.5,3061.2,7.846]
[1752600260117,0.4547,3061.4,3061.3,5.167]
[1752600260611,0.45470001,3061.7,3061.3,5.167]
[1752600260811,0.4547,3061.6,3061.3,5.167]
[1752600261046,0.8099,3061.6,3061.2,0.1632]
[1752600261247,3.26647938,3061.4,3061.2,0.1632]
[1752600261461,3.72128609,3061.3,3061.2,0.1632]
[1752600261609,3.76211841,3061.3,3061.1,5.167]
[1752600261940,4.53135083,3061.2,3061.1,5.167]
[1752600262146,1.2646,3061.2,3061.1,5.167]
[1752600263010,4.5312928,3061.2,3061.1,5.167]
[1752600263205,3.26708674,3060.9,3060.3,3.51656535]
[1752600263410,3.72191832,3060.8,3060.5,0.1632]
[1752600263644,0.4547,3060.7,3060.6,5.167]
[1752600265152,0.1632,3061.1,3060.6,5.167]
[1752600265153,0.4547,3061.3,3060.8,3.8171197]
[1752600265372,0.4547,3061.3,3060.9,5.167]
[1752600265570,3.0,3061.3,3060.9,5.3302]
[1752600265874,1.2646,3061.2,3060.9,5.3302]
[1752600266173,1.2646,3061.2,3060.9,0.1632]
[1752600266174,0.4547,3061.1,3060.9,0.1632]
[1752600266316,0.4547,3061.1,3060.6,3.26732649]
[1752600266317,0.65873499,3061.1,3060.8,5.167]
[1752600266519,0.4547,3061.0,3060.8,5.167]
[1752600266718,0.1632,3061.1,3060.8,5.167]
[1752600266950,0.4547,3060.9,3060.8,5.167]
[1752600267748,0.1632,3061.1,3060.8,8.43406371]
[1752600267948,0.6179,3061.1,3060.8,8.43406371]
[1752600268162,0.4547,3061.0,3060.8,5.167]
[1752600268725,3.47087632,3061.1,3060.6,0.1632]
[1752600268928,3.47087632,3061.1,3060.7,5.167]
[1752600268929,0.4547,3060.9,3060.7,5.167]
[1752600269129,4.22562486,3061.1,3060.6,0.1632]
[1752600269130,0.4547,3060.8,3060.6,0.1632]
[1752600269350,3.26694802,3061.0,3060.7,5.167]
[1752600269554,0.04083766,3060.9,3060.7,5.167]
[1752600269826,0.84263623,3060.9,3060.7,5.167]
[1752600270047,0.4547,3060.8,3060.6,0.1632]
[1752600270261,1.2644,3060.8,3060.6,5.3302]
[1752600270554,0.4547,3060.7,3060.6,5.3302]
[1752600270755,3.26754672,3060.4,3060.3,0.24051741]
[1752600270923,3.26796753,3060.1,3059.8,0.001]
[1752600271123,4.07778065,3059.9,3059.8,0.001]
[1752600271324,4.28183165,3059.9,3059.8,0.001]
[1752600271577,4.73653165,3059.9,3059.8,0.001]
[1752600271719,1.468451,3059.9,3059.8,0.001]
[1752600271920,1.4276,3059.9,3059.8,0.001]
[1752600272248,4.69568065,3059.9,3059.8,0.001]
[1752600272429,1.4276,3059.9,3059.8,0.001]
[1752600272946,1.468451,3059.9,3059.8,0.001]
[1752600273148,4.94210118,3059.9,3059.8,0.001]
[1752600273562,8.21018183,3059.9,3059.8,0.001]
[1752600273747,8.16933083,3059.9,3059.8,0.001]
[1752600275840,4.90125018,3059.9,3059.8,0.001]
[1752600276046,3.9729,3059.9,3059.8,0.001]
[1752600276558,4.4276,3059.9,3059.8,0.001]
[1752600276958,3.9729,3059.9,3059.8,0.001]
[1752600277881,4.4276,3059.9,3059.8,0.001]
[1752600280896,7.69568065,3059.9,3059.8,0.001]
[1752600281046,9.31293127,3059.9,3059.8,0.001]
[1752600287187,12.86368065,3059.9,3059.8,0.001]
[1752600288204,7.69568065,3059.9,3059.8,0.001]
[1752600288797,12.86368065,3059.9,3059.8,0.001]
[1752600290596,9.5956,3059.9,3059.8,0.001]
[1752600290802,12.86368065,3059.9,3059.8,0.001]
[1752600291106,6.04075509,3059.9,3059.8,0.001]
[1752600291273,0.204051,3059.9,3059.8,0.001]
[1752600291680,0.1632,3059.9,3059.8,0.001]
[1752600293929,0.1632,3059.9,3059.8,3.72068746]
[1752600294081,0.8168,3061.1,3060.1,0.55]
[1752600294282,0.1632,3060.9,3060.5,3.26737729]
[1752600294682,3.1632,3060.9,3060.5,3.26737729]
[1752600294913,0.04083899,3060.8,3060.5,3.26737729]
[1752600295282,0.04083899,3060.8,3060.4,3.26750043]
[1752600295487,0.04083899,3060.8,3060.4,3.71900043]
[1752600295692,0.04083899,3060.8,3060.5,3.26743199]
[1752600295909,0.04083899,3060.8,3060.4,0.4515]
[1752600296111,5.167,3060.7,3060.0,0.7509]
[1752600296298,0.1632,3060.4,3060.0,3.26792052]
[1752600296510,0.1632,3060.4,3060.1,3.26786548]
[1752600298022,0.1632,3060.4,3060.0,3.26795398]
[1752600298397,0.1632,3060.4,3060.1,3.26786282]
[1752600298721,0.1632,3060.4,3059.9,0.4515]
[1752600298894,0.04084566,3060.3,3059.9,3.26800855]
[1752600299098,0.04084566,3060.3,3060.0,0.10221455]
[1752600299305,0.04084566,3060.3,3060.1,0.10221456]
[1752600299306,3.72051858,3060.2,3060.1,0.10221456]
[1752600299598,3.26781858,3060.2,3060.1,0.10221456]
[1752600299799,0.1632,3060.2,3060.1,0.10221456]
[1752600302702,0.1632,3060.2,3060.1,3.37008162]
[1752600302897,0.1632,3060.2,3060.1,0.10221456]
[1752600304395,0.1632,3060.2,3060.1,2.21823114]
[1752600304622,1.2192,3060.9,3060.4,3.26748867]
[1752600304623,0.1632,3060.7,3060.4,3.26748867]
[1752600304931,0.20404033,3060.7,3060.5,0.10221456]
[1752600305103,0.20404033,3060.7,3060.6,0.10221456]
[1752600305305,0.1632,3060.7,3060.6,0.10221456]
[1752600305718,0.1632,3060.9,3060.6,3.82095093]
[1752600306034,0.1632,3060.9,3060.7,0.10221456]
[1752600306333,0.1632,3060.9,3060.8,0.10221456]
[1752600306535,0.1632,3060.9,3060.6,3.7187948]
[1752600306748,0.04083899,3060.8,3060.7,0.10219702]
[1752600307126,0.1632,3060.9,3060.7,0.10219702]
[1752600307328,0.1632,3060.9,3060.8,0.10219702]
[1752600308333,0.1632,3060.9,3060.8,3.36931672]
[1752600308508,0.1632,3060.9,3060.8,3.82081672]
[1752600308842,0.1632,3061.1,3060.9,3.26697111]
[1752600309046,0.1632,3061.1,3061.0,3.82060325]
[1752600309266,0.1632,3061.1,3061.0,0.55369702]
[1752600309646,0.1632,3061.1,3061.0,0.55368891]
[1752600310025,0.1632,3061.1,3061.0,0.10218891]
[1752600312547,0.1632,3061.1,3061.0,0.10218966]
[1752600313352,0.75762179,3061.4,3061.2,3.26662887]
[1752600313648,0.1632,3061.3,3061.0,0.4515]
[1752600313842,0.1632,3061.3,3061.1,0.10218552]
[1752600314043,0.1632,3061.3,3061.2,0.10218552]
[1752600315562,1.4298,3061.3,3060.3,0.785]
[1752600315855,1.4298,3061.3,3060.0,0.4515]
[1752600315856,3.26742125,3060.6,3060.2,0.1632]
[1752600316058,0.8139,3060.7,3059.8,0.001]
[1752600316059,0.1632,3060.1,3059.8,0.001]
[1752600316257,0.85474967,3060.0,3059.8,0.001]
[1752600316430,3.26808065,3059.9,3059.8,0.001]
[1752600316635,6.72078065,3059.9,3059.8,0.001]
[1752600316856,6.76163165,3059.9,3059.8,0.001]
[1752600317056,42.73753165,3059.9,3059.8,0.001]
[1752600317262,42.69668065,3059.9,3059.8,0.001]
[1752600317561,46.05334279,3059.9,3059.8,0.001]
[1752600321291,10.89134279,3059.9,3059.8,0.001]
[1752600321459,12.69668065,3059.9,3059.8,0.001]
[1752600322878,8.9749,3059.9,3059.8,0.001]
[1752600323063,8.161,3059.9,3059.8,0.001]
[1752600323674,5.161,3059.9,3059.8,0.001]
[1752600323871,8.93143165,3059.9,3059.8,0.001]
[1752600324057,13.12684076,3059.9,3059.8,0.001]
[1752600324984,13.91224076,3059.9,3059.8,0.001]
[1752600325776,43.91224076,3059.9,3059.8,0.001]
[1752600326182,38.75124076,3059.9,3059.8,0.001]
[1752600326398,43.91224076,3059.9,3059.8,0.001]
[1752600328914,13.91224076,3059.9,3059.8,0.001]
[1752600329119,43.91224076,3059.9,3059.8,0.001]
[1752600329986,3.26921508,3058.9,3058.5,0.001]
[1752600330193,0.1632,3058.7,3058.5,0.001]
[1752600330605,0.1632,3058.7,3058.5,0.4377]
[1752600331397,0.1632,3058.7,3058.5,0.001]
[1752600331604,5.161,3058.6,3058.5,0.001]
[1752600331912,5.20186837,3058.6,3058.5,0.001]
[1752600333183,12.0078449,3058.6,3058.5,0.001]
[1752600333523,11.96697653,3058.6,3058.5,0.001]
[1752600334333,12.42847653,3058.6,3058.5,0.001]
[1752600335137,43.23647653,3058.6,3058.5,0.001]
[1752600335419,13.23647653,3058.6,3058.5,0.001]
[1752600336023,9.50550684,3058.6,3058.5,0.001]
[1752600336324,8.69750684,3058.6,3058.5,0.001]
[1752600337017,3.0,3058.6,3058.5,0.001]
[1752600337219,8.161,3058.6,3058.5,0.001]
[1752600337417,11.89196969,3058.6,3058.5,0.001]
[1752600338603,8.89196969,3058.6,3058.5,0.001]
[1752600338902,11.89196969,3058.6,3058.5,0.001]
[1752600339106,13.40810323,3058.6,3058.5,0.001]
[1752600340397,4.51613354,3058.6,3058.5,0.001]
[1752600340605,8.161,3058.6,3058.5,0.001]
[1752600340936,8.161,3058.6,3058.5,0.10328017]
[1752600341299,11.43046969,3058.6,3058.5,0.10328017]
[1752600341602,8.161,3058.6,3058.5,0.10328017]
[1752600342134,8.161,3058.6,3058.5,0.9327792]
[1752600342135,8.3232,3058.6,3058.5,0.9327792]
[1752600342300,0.1632,3058.6,3058.5,1.3694792]
[1752600342500,5.3232,3058.6,3058.5,0.5399792]
[1752600342900,0.1632,3058.6,3058.5,0.5399792]
[1752600343104,5.16,3058.6,3058.5,3.80955578]
[1752600343337,5.16,3058.7,3058.6,3.26946969]
[1752600343541,3.0,3059.4,3058.6,4.59954213]
[1752600343741,0.1632,3059.1,3058.8,3.26925591]
[1752600343900,5.16,3059.3,3058.8,3.26925591]
[1752600343901,0.1632,3059.3,3059.2,3.26882845]
[1752600344233,0.816,3060.0,3059.2,3.26882845]
[1752600344234,5.16,3059.5,3059.3,3.26869377]
[1752600344420,0.1632,3059.5,3059.3,3.26869377]
[1752600344740,3.84168426,3059.5,3059.4,0.10224832]
[1752600344904,12.00168426,3059.5,3059.4,0.10224832]
[1752600345104,8.96082792,3059.5,3059.4,0.10224832]
[1752600345304,5.16,3059.5,3059.4,0.10224832]
[1752600345532,11.46936426,3059.5,3059.4,0.10224832]
[1752600345729,12.23920792,3059.5,3059.4,0.10224832]
[1752600346251,11.42750792,3059.5,3059.4,0.10224832]
[1752600346805,3.0,3059.5,3059.4,0.56504832]
[1752600347206,3.26804599,3060.0,3059.4,0.56504832]
[1752600347424,3.72579088,3060.5,3059.4,0.56504832]
[1752600347425,0.1632,3059.6,3059.5,0.10224832]
[1752600348021,0.1632,3059.6,3059.4,0.03268614]
[1752600348553,0.1632,3059.6,3059.3,0.7823]
[1752600350029,0.1632,3059.6,3059.3,1.06488744]
[1752600351229,0.1632,3059.6,3059.3,1.84145952]
[1752600351441,0.1632,3059.6,3059.3,4.33353095]
[1752600351646,0.1632,3059.6,3059.3,1.06488744]
[1752600351821,0.1632,3059.6,3059.4,0.10222695]
[1752600352022,0.1632,3059.6,3059.5,0.10222695]
[1752600355945,0.1632,3059.6,3059.5,4.70371994]
[1752600356254,0.002,3059.9,3059.5,4.70371994]
[1752600356255,0.002,3059.9,3059.8,4.63218746]
[1752600356456,0.002,3059.9,3059.8,4.76709628]
[1752600356655,0.002,3059.9,3059.8,4.93029628]
[1752600356946,0.002,3059.9,3059.8,4.93027762]
[1752600358516,0.002,3059.9,3059.8,10.08527762]
[1752600358717,0.002,3059.9,3059.8,11.2172946]
[1752600360012,0.002,3059.9,3059.8,14.21727936]
[1752600360217,0.1632,3060.8,3060.6,0.7939]
[1752600360451,0.1632,3060.8,3060.6,9.21516735]
[1752600360745,0.1632,3060.8,3060.7,0.10218154]
[1752600362024,0.1632,3060.8,3060.7,3.36940799]
[1752600362226,0.1632,3060.8,3060.7,0.10218154]
[1752600362616,3.4303197,3060.8,3060.7,0.10218154]
[1752600362822,3.89537066,3060.8,3060.7,0.10218154]
[1752600363358,0.62825096,3060.8,3060.7,0.10218154]
[1752600364673,0.58741197,3060.8,3060.7,0.10218154]
[1752600365166,3.89537066,3060.8,3060.7,0.10219756]
[1752600365468,0.62825096,3060.8,3060.7,0.10219756]
[1752600365660,0.1632,3060.8,3060.7,0.10219756]
[1752600366254,0.1632,3060.8,3060.7,5.25419756]
[1752600366939,0.1632,3060.8,3060.7,5.25418785]
[1752600367697,0.1632,3060.8,3060.7,0.10218785]
[1752600367836,0.1632,3060.8,3060.7,5.25318785]
[1752600368034,0.1632,3060.8,3060.7,5.25319385]
[1752600368383,0.1632,3060.8,3060.7,0.10219385]
[1752600368384,0.50621614,3060.8,3060.7,0.10219385]
[1752600368581,0.50621614,3060.8,3060.6,5.151]
[1752600368736,0.04084033,3060.7,3060.6,5.151]
[1752600368937,0.04084033,3060.7,3060.6,5.25320013]
[1752600369248,0.04084033,3060.7,3060.6,0.10220013]
[1752600372065,0.04084033,3060.7,3060.6,0.00220013]
[1752600373598,0.20603899,3060.8,3060.6,0.00220013]
[1752600373768,0.1652,3060.8,3060.3,5.15]
[1752600373965,0.1632,3060.4,3060.3,5.15]
[1752600375584,0.1632,3060.4,3060.3,5.149]
[1752600376146,0.1632,3060.4,3060.0,0.7999]
[1752600376352,0.1632,3060.4,3060.1,8.44953994]
[1752600376665,0.1632,3060.4,3060.1,5.149]
[1752600376884,0.1632,3060.4,3060.1,8.44949698]
[1752600377065,0.1632,3060.4,3060.1,5.149]
[1752600377399,0.1632,3060.4,3060.2,5.149]
[1752600377759,0.1632,3060.4,3060.3,5.148]
[1752600378107,3.3083429,3060.5,3060.3,5.148]
[1752600378986,0.04084299,3060.5,3060.3,5.148]
[1752600379477,0.04084299,3060.5,3060.0,0.83257973]
[1752600379692,0.1632,3060.2,3060.0,0.83257973]
[1752600379900,0.1632,3060.2,3060.1,5.148]
[1752600382803,0.1632,3060.2,3060.0,0.83257973]
[1752600382996,0.1632,3060.2,3060.1,5.147]
[1752600383285,0.04084299,3060.5,3060.1,5.147]
[1752600383286,0.04084566,3060.3,3060.1,5.147]
[1752600383486,0.04084433,3060.4,3060.1,5.147]
[1752600383791,3.30840287,3060.4,3060.1,5.147]
[1752600384157,0.04084433,3060.4,3060.1,5.147]
[1752600385604,3.30840278,3060.4,3060.1,5.147]
[1752600386198,3.30840278,3060.4,3060.2,5.146]
[1752600386488,3.30840278,3060.4,3059.8,0.001]
[1752600386489,3.26779998,3060.2,3060.0,5.146]
[1752600386706,3.26779998,3060.2,3059.8,5.147]
[1752600386862,3.30864698,3060.2,3059.8,5.147]
[1752600387060,4.04665094,3060.2,3059.8,5.147]
[1752600387910,3.26787076,3060.1,3059.8,5.147]
[1752600388259,4.04666139,3060.2,3059.8,5.147]
[1752600389409,3.26788272,3060.1,3059.8,5.147]
[1752600389798,0.77885096,3060.2,3059.8,5.147]
[1752600390002,0.04084833,3060.1,3059.8,5.147]
[1752600390547,3.26779363,3060.2,3059.8,5.147]
[1752600390689,6.3085391,3060.3,3059.8,5.147]
[1752600390892,0.756,3060.6,3059.9,0.8056]
[1752600391097,0.1632,3060.0,3059.9,4.10636145]
[1752600391299,3.04084033,3060.7,3060.0,3.26797144]
[1752600391498,0.1632,3060.2,3060.1,5.145]
[1752600391947,0.1632,3060.2,3060.1,8.41278543]
[1752600392429,0.1632,3060.2,3060.1,8.41286706]
[1752600393537,0.002,3060.8,3060.6,0.7963]
[1752600393833,0.002,3060.8,3060.7,5.144]
[1752600394030,0.002,3060.8,3060.7,10.71095952]
[1752600394328,0.002,3060.8,3060.7,10.78046567]
[1752600394922,0.002,3060.8,3060.7,10.67828726]
[1752600395127,0.002,3060.8,3060.7,10.78046578]
[1752600395632,0.002,3060.8,3060.7,10.7804647]
[1752600396348,0.002,3060.8,3060.4,0.8129]
[1752600396555,0.002,3060.8,3060.5,5.144]
[1752600398004,0.002,3060.8,3060.4,4.08040973]
[1752600398309,0.002,3060.8,3060.5,3.26740764]
[1752600398611,0.002,3060.8,3060.6,5.142]
[1752600399949,0.002,3060.8,3060.4,4.08038181]
[1752600400243,0.002,3060.8,3060.5,5.24418822]
[1752600400436,3.26912409,3060.8,3060.6,5.24418822]
[1752600400785,3.92272784,3060.8,3060.7,0.10218822]
[1752600400957,3.92272784,3060.8,3060.4,5.141]
[1752600400958,7.74562784,3060.8,3060.4,5.141]
[1752600401120,3.26743996,3060.5,3060.4,5.141]
[1752600401321,3.26743996,3060.5,3060.4,5.24320134]
[1752600401521,3.26743996,3060.5,3060.4,0.10220134]
[1752600401755,3.92091748,3060.5,3060.4,0.10220134]
[1752600403556,3.96176047,3060.5,3060.4,0.10220134]
[1752600404058,3.43084105,3060.4,3060.2,5.141]
[1752600404374,1.47850375,3060.8,3060.3,0.10220728]
[1752600404601,1.47850375,3060.8,3060.4,0.10220728]
[1752600404602,0.002,3060.8,3060.4,0.10220728]
[1752600404754,3.26916026,3060.8,3060.5,0.10220728]
[1752600404953,3.26916026,3060.8,3060.6,0.10220728]
[1752600405259,0.002,3060.8,3060.3,3.26763293]
[1752600405579,0.1632,3060.4,3060.3,3.26763293]
[1752600406681,0.002,3060.8,3060.5,3.26740338]
[1752600406881,0.1632,3060.6,3060.5,3.26740338]
[1752600407052,0.1632,3060.6,3060.5,8.40740338]
[1752600407260,0.002,3060.8,3060.7,3.26722645]
[1752600407455,0.002,3060.8,3060.7,4.60942645]
[1752600407659,0.002,3060.8,3060.7,5.46147382]
[1752600408697,0.002,3060.8,3060.7,16.19918683]
[1752600409055,0.002,3060.8,3060.7,16.36238683]
[1752600409254,0.002,3060.8,3060.7,21.50138683]
[1752600411360,0.002,3061.2,3061.1,3.26679951]
[1752600411566,0.002,3061.2,3061.1,20.28076473]
[1752600411883,1e-08,3061.2,3061.1,20.83076473]
[1752600412085,1e-08,3061.2,3061.1,23.83076473]
[1752600412890,1e-08,3061.2,3061.1,10.3024383]
[1752600414926,1e-08,3061.2,3061.1,5.1654383]
[1752600415220,1e-08,3061.2,3061.1,10.33410629]
[1752600415362,1e-08,3061.2,3061.1,10.3014383]
[1752600415569,1e-08,3061.2,3061.1,9.97475835]
[1752600415768,1e-08,3061.2,3061.1,6.70795884]
[1752600416009,1e-08,3061.2,3061.1,10.00742634]
[1752600416213,1e-08,3061.2,3061.1,9.97475835]
[1752600416380,1e-08,3061.2,3061.1,6.70795884]
[1752600416574,1e-08,3061.2,3061.1,0.27572683]
[1752600416788,1e-08,3061.2,3061.1,5.41072683]
[1752600417173,1e-08,3061.2,3061.1,0.27572683]
[1752600417373,1e-08,3061.2,3061.1,5.37805884]
[1752600417989,1e-08,3061.2,3061.1,0.24305884]
[1752600418192,1e-08,3061.2,3061.1,5.135]
[1752600418506,1e-08,3061.2,3060.7,0.81937511]
[1752600418679,0.7546,3061.1,3060.3,8.6354]
[1752600418885,3.26719903,3060.8,3060.3,7.846]
[1752600419215,3.26723827,3060.7,3060.4,5.135]
[1752600419426,3.2673332,3060.6,3060.5,0.10218408]
[1752600419659,3.2673332,3060.6,3060.5,5.23718408]
[1752600419821,0.7546,3060.6,3060.5,5.23718408]
[1752600420402,0.7546,3060.6,3060.5,5.135]
[1752600421235,3.26716766,3060.8,3060.5,5.135]
[1752600421441,3.26725579,3060.7,3060.5,5.135]
[1752600421624,3.30809612,3060.7,3060.5,5.135]
[1752600421822,3.26725579,3060.7,3060.5,5.135]
[1752600421998,3.26715917,3060.8,3060.5,5.135]
[1752600422839,3.30807739,3060.7,3060.5,5.135]
[1752600423042,3.2673332,3060.6,3060.5,5.135]
[1752600423549,3.30811693,3060.7,3060.5,5.135]
[1752600423908,3.2673332,3060.6,3060.5,5.135]
[1752600424108,3.30811457,3060.7,3060.5,5.135]
[1752600424334,3.26713418,3060.8,3060.5,5.135]
[1752600424813,3.2672521,3060.7,3060.5,5.135]
[1752600425018,3.2673332,3060.6,3060.5,5.135]
[1752600425349,3.7406332,3060.6,3060.5,5.135]
[1752600425551,0.1632,3060.5,3060.3,0.24301455]
[1752600425713,3.74090429,3060.4,3060.3,5.134]
[1752600426651,0.1632,3060.3,3059.9,3.81807609]
[1752600426844,0.1632,3060.3,3060.0,5.59570761]
[1752600427344,0.1632,3060.3,3059.9,0.2414695]
[1752600427345,0.4733,3060.2,3059.9,0.2414695]
[1752600427551,0.4733,3060.2,3060.1,5.133]
[1752600427552,0.6365,3060.2,3060.1,5.133]
[1752600429066,0.1632,3060.2,3060.1,5.133]
[1752600429858,3.43103004,3060.2,3060.1,5.133]
[1752600430059,0.1632,3060.2,3060.1,5.9047]
[1752600430267,0.04083766,3060.9,3060.2,0.55]
[1752600430567,0.1632,3060.6,3060.3,0.03267653]
[1752600430719,0.1632,3060.6,3060.4,5.133]
[1752600432027,3.2673332,3060.6,3060.5,5.133]
[1752600432258,3.7406332,3060.6,3060.5,5.133]
[1752600432457,3.78147486,3060.6,3060.5,5.133]
[1752600432673,3.2673332,3060.6,3060.5,5.133]
[1752600432860,3.267285,3060.7,3060.5,5.133]
[1752600433837,3.2673332,3060.6,3060.5,5.133]
[1752600434355,0.1632,3060.5,3060.1,3.30054563]
[1752600434593,0.1632,3060.3,3060.2,5.132]
[1752600435353,0.1632,3060.3,3060.2,8.39976027]
[1752600435576,0.1632,3060.3,3060.2,9.19456027]
[1752600435723,3.30769045,3061.1,3060.5,3.26740962]